bitfinex/quotes_BTCUSD_20260117
["timestamp","ask_amount","ask_price","bid_price","bid_amount"]
[1768650178170,0.01049923,95245.0,95241.0,1.95e-06]
[1768650179018,0.01049901,95247.0,95241.0,0.06300001]
[1768650179431,0.05924062,95246.0,95241.0,0.01050162]
[1768650179841,0.01049923,95245.0,95241.0,0.01050162]
[1768650180890,0.05924062,95246.0,95242.0,0.01049956]
[1768650181089,0.05924062,95246.0,95241.0,0.01050162]
[1768650181212,0.01049923,95245.0,95241.0,0.01050162]
[1768650181416,0.0487415,95244.0,95241.0,0.01050162]
[1768650182528,0.01049923,95245.0,95241.0,0.01050162]
[1768650183068,0.01049923,95245.0,95241.0,1.95e-06]
[1768650184291,0.01049923,95245.0,95241.0,0.01050162]
[1768650184488,0.01049912,95246.0,95241.0,0.01050162]
[1768650184694,0.0487415,95246.0,95242.0,0.01049956]
[1768650185681,0.0487415,95246.0,95243.0,0.01049945]
[1768650186316,0.0487415,95246.0,95243.0,0.06299668]
[1768650187113,0.0487415,95246.0,95244.0,0.05249667]
[1768650189773,0.01049868,95250.0,95246.0,0.01049912]
[1768650189944,0.05924018,95250.0,95246.0,0.01049912]
[1768650191209,0.01049879,95249.0,95243.0,0.01049945]
[1768650191421,0.05924018,95250.0,95245.0,0.01049923]
[1768650191877,0.0487415,95250.0,95246.0,0.01049912]
[1768650193038,0.0487415,95249.0,95245.0,0.01049923]
[1768650194082,0.0487415,95249.0,95245.0,0.06299538]
[1768650194291,0.05924029,95249.0,95244.0,0.01049934]
[1768650194465,0.0104989,95248.0,95244.0,0.01049934]
[1768650194675,0.0592404,95248.0,95244.0,0.01049934]
[1768650197836,0.0104989,95248.0,95243.0,0.01049945]
[1768650198197,0.0592404,95248.0,95243.0,0.01049945]
[1768650198779,0.0592404,95248.0,95244.0,0.01049934]
[1768650199287,0.0487415,95248.0,95244.0,0.01049934]
[1768650199494,0.01049879,95249.0,95244.0,0.01049934]
[1768650199691,0.01049868,95250.0,95245.0,0.01049923]
[1768650199928,0.05924007,95251.0,95246.0,0.01049912]
[1768650200041,0.06314896,95254.0,95248.0,0.0104989]
[1768650200042,0.01065744,95254.0,95248.0,0.0104989]
[1768650200443,0.1759415,95253.0,95248.0,0.0104989]
[1768650200711,0.13769835,95253.0,95248.0,0.0104989]
[1768650200942,0.01049846,95252.0,95248.0,0.0104989]
[1768650201284,0.13769835,95253.0,95248.0,0.0104989]
[1768650201480,0.01049846,95252.0,95248.0,0.0104989]
[1768650201904,0.18683978,95253.0,95248.0,0.0104989]
[1768650202739,0.13769835,95253.0,95245.0,0.01049923]
[1768650202966,0.01049846,95252.0,95247.0,0.01049901]
[1768650203140,0.05963989,95252.0,95247.0,0.01049901]
[1768650203347,0.05963989,95252.0,95245.0,0.01049923]
[1768650203580,0.05963989,95252.0,95245.0,0.06299534]
[1768650203904,0.01049857,95251.0,95247.0,0.01049901]
[1768650204538,0.04914143,95251.0,95248.0,0.0104989]
[1768650205031,0.01049857,95251.0,95246.0,0.01049912]
[1768650205312,0.01049846,95252.0,95247.0,0.01049901]
[1768650205646,0.01049857,95251.0,95247.0,0.01049901]
[1768650206051,0.05963989,95252.0,95247.0,0.01049901]
[1768650206253,0.05963989,95252.0,95248.0,0.0104989]
[1768650206664,0.04914143,95252.0,95248.0,0.0104989]
[1768650207292,0.04914143,95252.0,95249.0,0.01049879]
[1768650209174,0.04914143,95252.0,95248.0,0.0104989]
[1768650209382,0.04914143,95252.0,95249.0,0.01049879]
[1768650212178,0.1272,95253.0,95249.0,0.01049879]
[1768650212389,0.1272,95253.0,95250.0,0.01049868]
[1768650214485,0.176891,95253.0,95249.0,0.01049879]
[1768650214903,0.176891,95253.0,95250.0,0.01049868]
[1768650215546,0.176891,95253.0,95249.0,0.01049879]
[1768650215970,0.17610035,95253.0,95249.0,0.01049879]
[1768650216170,0.049691,95253.0,95249.0,0.01049879]
[1768650216380,0.176891,95253.0,95249.0,0.01049879]
[1768650216586,0.18738935,95253.0,95249.0,0.01049879]
[1768650216816,0.18738935,95253.0,95248.0,0.0104989]
[1768650217412,0.18738935,95253.0,95249.0,0.01049879]
[1768650218270,0.176891,95253.0,95250.0,0.01049868]
[1768650218498,0.01049846,95252.0,95246.0,0.01049912]
[1768650218731,0.176891,95253.0,95248.0,0.0524944]
[1768650218938,0.1272,95253.0,95248.0,0.0524944]
[1768650219155,0.1212,95253.0,95250.0,0.01049868]
[1768650219393,0.13169835,95253.0,95248.0,0.0104989]
[1768650219624,0.1212,95253.0,95249.0,0.01049879]
[1768650220252,0.1212,95253.0,95250.0,0.01049868]
[1768650221010,0.1212,95253.0,95250.0,0.06299202]
[1768650221213,0.0001592,95254.0,95251.0,0.01049857]
[1768650221426,0.1273592,95254.0,95251.0,0.01049857]
[1768650221628,0.1273592,95254.0,95250.0,0.01049868]
[1768650222627,0.1273592,95254.0,95248.0,0.06299325]
[1768650222828,0.1273592,95254.0,95250.0,0.01049868]
[1768650222829,0.13785744,95254.0,95250.0,0.01049868]
[1768650223028,0.1273592,95254.0,95251.0,0.01049857]
[1768650223467,0.1273592,95254.0,95250.0,0.01049868]
[1768650224334,0.13785744,95254.0,95250.0,0.01049868]
[1768650224533,1e-08,95256.0,95253.0,0.06299013]
[1768650224743,1e-08,95256.0,95255.0,0.05249068]
[1768650225738,1e-08,95256.0,95253.0,0.06299013]
[1768650227690,0.04969101,95256.0,95253.0,0.01049835]
[1768650227981,0.04929551,95256.0,95253.0,0.01049835]
[1768650228589,0.04929551,95256.0,95253.0,0.06298999]
[1768650234145,0.1272,95259.0,95253.0,0.01049835]
[1768650234358,0.1272,95259.0,95254.0,0.05249111]
[1768650234805,0.17452739,95259.0,95254.0,0.05249111]
[1768650235010,0.04732739,95258.0,95254.0,0.05249111]
[1768650235446,0.04732739,95258.0,95255.0,0.01049813]
[1768650238899,0.04732739,95258.0,95252.0,0.01049846]
[1768650239112,0.01049802,95256.0,95248.0,0.05249403]
[1768650239322,0.01049813,95255.0,95246.0,0.01049912]
[1768650239526,0.01049813,95255.0,95251.0,0.01049857]
[1768650239741,0.01049813,95255.0,95250.0,0.01049868]
[1768650240074,0.01049824,95254.0,95250.0,0.01049868]
[1768650240278,0.01049835,95253.0,95248.0,0.0104989]
[1768650240477,0.01049835,95253.0,95249.0,0.01049879]
[1768650240884,0.01049824,95254.0,95250.0,0.01049868]
[1768650241634,0.01049813,95255.0,95251.0,0.01049857]
[1768650241836,0.01049802,95256.0,95251.0,0.01049857]
[1768650242045,0.01049813,95255.0,95251.0,0.01049857]
[1768650242287,0.01049813,95255.0,95250.0,0.01049868]
[1768650242907,0.01049813,95255.0,95251.0,0.01049857]
[1768650243062,0.01049824,95254.0,95250.0,0.01049868]
[1768650243225,0.01049824,95254.0,95249.0,0.01049879]
[1768650243871,0.01049824,95254.0,95250.0,0.01049868]
[1768650244104,0.01049824,95254.0,95249.0,0.01049879]
[1768650244300,0.01049824,95254.0,95247.0,0.06299394]
[1768650244768,0.01049802,95256.0,95247.0,0.01049901]
[1768650244971,0.01049802,95256.0,95248.0,0.05249454]
[1768650246009,0.01049791,95257.0,95252.0,0.01049846]
[1768650246583,0.01049802,95256.0,95252.0,0.01049846]
[1768650247236,0.01049791,95257.0,95252.0,0.01049846]
[1768650247434,0.01049791,95257.0,95253.0,0.01049835]
[1768650248095,0.06298556,95260.0,95254.0,0.01049824]
[1768650248313,0.0104978,95258.0,95254.0,0.01049824]
[1768650248775,0.0104978,95258.0,95253.0,0.01049835]
[1768650248987,0.03331559,95264.0,95255.0,0.01049813]
[1768650249205,0.03331559,95264.0,95254.0,0.01049824]
[1768650249206,0.13769692,95266.0,95254.0,0.01049824]
[1768650249420,0.01049714,95264.0,95260.0,0.01049758]
[1768650249630,0.01049714,95264.0,95258.0,0.0104978]
[1768650249860,0.01049736,95262.0,95257.0,0.01049791]
[1768650250083,0.01049736,95262.0,95254.0,0.06298915]
[1768650250310,0.01049736,95262.0,95257.0,0.01049791]
[1768650250517,0.01049747,95261.0,95257.0,0.01049791]
[1768650251118,0.01049736,95262.0,95257.0,0.01049791]
[1768650251328,0.01049725,95263.0,95258.0,0.0104978]
[1768650251763,0.01049725,95263.0,95259.0,0.01049769]
[1768650252143,0.01049714,95264.0,95259.0,0.01049769]
[1768650252407,0.01049714,95264.0,95260.0,0.01049758]
[1768650252590,0.01049714,95264.0,95259.0,0.01049769]
[1768650252793,0.01049714,95264.0,95258.0,0.0104978]
[1768650252989,0.0629837,95263.0,95257.0,0.01049791]
[1768650253196,0.01049736,95262.0,95257.0,0.01049791]
[1768650253402,0.01049747,95261.0,95257.0,0.01049791]
[1768650253614,0.01049725,95263.0,95257.0,0.01049791]
[1768650253814,0.01049736,95262.0,95257.0,0.01049791]
[1768650254066,0.01049747,95261.0,95257.0,0.01049791]
[1768650254618,0.01049747,95261.0,95256.0,0.01049802]
[1768650256249,0.01049769,95259.0,95254.0,0.01049824]
[1768650256452,0.01049758,95260.0,95255.0,0.01049813]
[1768650256688,0.01049769,95259.0,95253.0,0.01049835]
[1768650256887,0.0104978,95258.0,95254.0,0.01049824]
[1768650257299,0.0104978,95258.0,95252.0,0.07348875]
[1768650257490,0.01049791,95257.0,95252.0,0.02099659]
[1768650257724,0.01040733,95257.0,95252.0,0.02099659]
[1768650257899,0.01040733,95257.0,95253.0,0.01049835]
[1768650258102,0.01040733,95257.0,95252.0,0.02099659]
[1768650258302,0.01040733,95257.0,95253.0,0.01049835]
[1768650258510,0.0104978,95258.0,95253.0,0.01049835]
[1768650258666,0.0104978,95258.0,95254.0,0.01049824]
[1768650259069,0.0104978,95258.0,95253.0,0.01049835]
[1768650259750,0.01049758,95260.0,95254.0,0.01049824]
[1768650260010,0.01049769,95259.0,95255.0,0.01049813]
[1768650260937,0.00712868,95259.0,95255.0,0.01049813]
[1768650261067,0.01049758,95260.0,95256.0,0.01049802]
[1768650261869,0.01049758,95260.0,95255.0,0.01049813]
[1768650263282,0.01049758,95260.0,95256.0,0.01049802]
[1768650263488,0.01049769,95259.0,95254.0,0.01049824]
[1768650263931,0.01049769,95259.0,95255.0,0.01049813]
[1768650264162,0.01049769,95259.0,95254.0,0.01049824]
[1768650264373,0.01049758,95260.0,95255.0,0.01049813]
[1768650265627,0.01049758,95260.0,95256.0,0.01049802]
[1768650265985,0.01049758,95260.0,95255.0,0.01049813]
[1768650266491,0.01049758,95260.0,95256.0,0.01049802]
[1768650267238,0.01049747,95261.0,95257.0,0.01049791]
[1768650268228,0.01049747,95261.0,95254.0,0.01049824]
[1768650268229,0.06298509,95261.0,95254.0,0.01049824]
[1768650268449,0.01049758,95260.0,95255.0,0.01049813]
[1768650269270,0.01049758,95260.0,95256.0,0.01049802]
[1768650269510,0.01049758,95260.0,95255.0,0.01049813]
[1768650270663,0.01049758,95260.0,95256.0,0.01049802]
[1768650271744,0.01049747,95261.0,95256.0,0.01049802]
[1768650271950,0.01049747,95261.0,95255.0,0.06298866]
[1768650271951,0.01049758,95260.0,95255.0,0.01049813]
[1768650272156,0.010407,95260.0,95255.0,0.01049813]
[1768650272472,0.01049769,95259.0,95254.0,0.01049824]
[1768650272872,0.01049769,95259.0,95255.0,0.01049813]
[1768650274545,0.01049769,95259.0,95254.0,0.01049824]
[1768650276594,0.0628951,95260.0,95254.0,0.01049824]
[1768650276595,0.010407,95260.0,95255.0,0.01049813]
[1768650277010,0.010407,95260.0,95256.0,0.01049802]
[1768650277217,0.01049747,95261.0,95256.0,0.01049802]
[1768650278694,0.01049769,95259.0,95255.0,0.01049813]
[1768650279157,0.01049747,95261.0,95256.0,0.01049802]
[1768650279386,0.01049758,95260.0,95256.0,0.01049802]
[1768650282977,0.01049769,95259.0,95254.0,0.01049824]
[1768650283512,0.0104978,95258.0,95254.0,0.01049824]
[1768650283948,0.01049769,95259.0,95255.0,0.01049813]
[1768650284657,0.01049758,95260.0,95255.0,0.01049813]
[1768650286419,0.01049758,95260.0,95256.0,0.01049802]
[1768650287270,0.0104978,95258.0,95253.0,0.01049835]
[1768650288317,0.0104978,95258.0,95254.0,0.01049824]
[1768650289201,0.01049791,95257.0,95252.0,0.01049846]
[1768650289408,0.01049802,95256.0,95251.0,0.02099692]
[1768650289664,0.01049813,95255.0,95251.0,0.02099692]
[1768650289878,0.01049802,95256.0,95251.0,0.02099692]
[1768650291426,0.01049802,95256.0,95252.0,0.01049846]
[1768650292068,0.01049802,95256.0,95251.0,0.02099692]
[1768650292278,0.01049802,95256.0,95252.0,0.01049846]
[1768650292488,0.01049813,95255.0,95251.0,0.01049835]
[1768650292697,0.01049813,95255.0,95251.0,0.02099692]
[1768650293124,0.01049824,95254.0,95251.0,0.01049835]
[1768650293539,0.01049824,95254.0,95250.0,0.1272]
[1768650293740,0.01049824,95254.0,95250.0,0.13769868]
[1768650295017,0.01049813,95255.0,95250.0,0.13769868]
[1768650295971,0.01049824,95254.0,95250.0,0.1272]
[1768650296181,0.01040733,95257.0,95252.0,0.01049846]
[1768650296386,0.01049802,95256.0,95252.0,0.01049846]
[1768650296997,0.01040733,95257.0,95252.0,0.01049846]
[1768650297205,0.01049769,95259.0,95254.0,0.01049824]
[1768650298242,0.01049769,95259.0,95255.0,0.01049813]
[1768650298450,0.01049769,95259.0,95254.0,0.01049824]
[1768650298659,0.01049769,95259.0,95255.0,0.01049813]
[1768650300607,0.01049758,95260.0,95255.0,0.01049813]
[1768650300811,0.06298736,95258.0,95252.0,0.01049846]
[1768650300964,0.01049758,95260.0,95253.0,0.01049835]
[1768650301181,0.0104978,95258.0,95254.0,0.01049824]
[1768650301563,0.01049769,95259.0,95255.0,0.01049813]
[1768650301769,0.01049758,95260.0,95255.0,0.01049813]
[1768650301972,0.01049769,95259.0,95255.0,0.01049813]
[1768650302554,0.01049758,95260.0,95255.0,0.01049813]
[1768650302979,0.01049758,95260.0,95256.0,0.01049802]
[1768650303404,0.04867619,95261.0,95257.0,0.01049791]
[1768650303719,0.05917366,95261.0,95257.0,0.01049791]
[1768650303924,0.04867619,95261.0,95257.0,0.01049791]
[1768650305523,0.05917366,95261.0,95257.0,0.01049791]
[1768650305931,0.05908307,95261.0,95257.0,0.01049791]
[1768650306329,0.05908307,95261.0,95256.0,0.01049802]
[1768650306530,0.0485856,95261.0,95257.0,0.01049791]
[1768650307070,0.0485856,95261.0,95258.0,0.0104978]
[1768650307503,0.01049769,95259.0,95255.0,0.01049813]
[1768650307985,0.01049769,95259.0,95254.0,0.01049824]
[1768650308138,0.01049758,95260.0,95255.0,0.01049813]
[1768650308342,0.01049758,95260.0,95256.0,0.01049802]
[1768650310802,0.01049758,95260.0,95255.0,0.01049813]
[1768650310966,0.01049758,95260.0,95256.0,0.01049802]
[1768650312178,0.01049758,95260.0,95253.0,0.05249175]
[1768650312179,0.0104978,95258.0,95253.0,0.01049835]
[1768650312393,0.01049769,95259.0,95254.0,0.01049824]
[1768650312593,0.01049769,95259.0,95255.0,0.01049813]
[1768650312945,0.01049758,95260.0,95255.0,0.01049813]
[1768650314481,0.01049758,95260.0,95256.0,0.01049802]
[1768650315939,0.01049813,95255.0,95250.0,0.14819681]
[1768650316148,0.01049791,95257.0,95250.0,0.14819681]
[1768650316149,0.01049769,95259.0,95253.0,0.01049835]
[1768650317080,0.01049769,95259.0,95254.0,0.01049824]
[1768650317996,0.0104978,95258.0,95254.0,0.01049824]
[1768650318197,0.0104978,95258.0,95253.0,0.01049835]
[1768650318412,0.0104978,95258.0,95254.0,0.01049824]
[1768650319061,0.01049791,95257.0,95252.0,0.01049846]
[1768650319270,0.01049802,95256.0,95251.0,0.01049857]
[1768650319669,0.01049791,95257.0,95253.0,0.01049835]
[1768650319874,0.01049802,95256.0,95250.0,0.14819681]
[1768650320218,0.01049802,95256.0,95251.0,0.01049857]
[1768650321232,0.01049813,95255.0,95251.0,0.01049857]
[1768650322212,0.01049802,95256.0,95251.0,0.01049857]
[1768650322628,0.01049802,95256.0,95252.0,0.01049846]
[1768650322847,0.01049802,95256.0,95251.0,0.01049857]
[1768650323259,0.01049824,95254.0,95250.0,0.14819681]
[1768650323466,0.01049813,95255.0,95251.0,0.01049857]
[1768650323672,0.01049813,95255.0,95250.0,0.13769813]
[1768650324093,0.01049802,95256.0,95251.0,0.01049857]
[1768650324244,0.01049802,95256.0,95252.0,0.01049846]
[1768650324515,0.01049802,95256.0,95250.0,0.14819681]
[1768650324516,0.01049824,95254.0,95250.0,0.14819681]
[1768650324849,0.01049813,95255.0,95250.0,0.14819681]
[1768650325053,0.01049802,95256.0,95251.0,0.01049857]
[1768650326044,0.01049802,95256.0,95252.0,0.01049846]
[1768650327978,0.01049791,95257.0,95253.0,0.01049835]
[1768650328341,0.01049747,95261.0,95254.0,0.01049824]
[1768650328947,0.01049769,95259.0,95254.0,0.01049824]
[1768650329730,0.0104978,95258.0,95254.0,0.01049824]
[1768650329947,0.0104978,95258.0,95254.0,0.01045296]
[1768650332604,0.0104978,95258.0,95254.0,0.01049824]
[1768650333212,0.0104978,95258.0,95253.0,0.01049835]
[1768650333438,0.0104978,95258.0,95250.0,0.17969291]
[1768650333602,0.062987,95258.0,95250.0,0.17969291]
[1768650333971,0.01049802,95256.0,95251.0,0.01049857]
[1768650334626,0.01049802,95256.0,95252.0,0.01049846]
[1768650335405,0.01049802,95256.0,95252.0,0.01045318]
[1768650337905,0.01049791,95257.0,95252.0,0.01045318]
[1768650338444,0.01049802,95256.0,95252.0,0.01045318]
[1768650338615,0.01049802,95256.0,95252.0,0.01025548]
[1768650339040,0.0104978,95258.0,95253.0,0.01049835]
[1768650340510,0.01049791,95257.0,95252.0,0.01025548]
[1768650340947,0.01049791,95257.0,95253.0,0.01049835]
[1768650341160,0.01049802,95256.0,95252.0,0.01025548]
[1768650341535,0.01049791,95257.0,95252.0,0.01025548]
[1768650341737,0.01049791,95257.0,95252.0,0.0102102]
[1768650342150,0.01049802,95256.0,95252.0,0.0102102]
[1768650342352,0.01049802,95256.0,95251.0,0.01049857]
[1768650342947,0.01049791,95257.0,95252.0,0.01049846]
[1768650343424,0.01049791,95257.0,95253.0,0.01049835]
[1768650344532,0.01049791,95257.0,95252.0,0.01049846]
[1768650345131,0.01049802,95256.0,95252.0,0.01049846]
[1768650346405,0.01049802,95256.0,95251.0,0.01049857]
[1768650348668,0.01049802,95256.0,95251.0,0.01045329]
[1768650349431,0.01049791,95257.0,95252.0,0.01030077]
[1768650349621,0.01049791,95257.0,95253.0,0.01049835]
[1768650349828,0.0104978,95258.0,95254.0,0.01049824]
[1768650350463,0.0104978,95258.0,95253.0,0.01049835]
[1768650350678,0.0104978,95258.0,95253.0,0.01030067]
[1768650352015,0.01049791,95257.0,95253.0,0.01030067]
[1768650352861,0.01049791,95257.0,95252.0,0.01030077]
[1768650353210,0.01049802,95256.0,95252.0,0.01030077]
[1768650355256,0.01049802,95256.0,95252.0,0.01025549]
[1768650355465,0.01049802,95256.0,95251.0,0.01045329]
[1768650355847,0.01049802,95256.0,95252.0,0.01049846]
[1768650356332,0.01049802,95256.0,95251.0,0.01045329]
[1768650357123,0.01049791,95257.0,95252.0,0.01049846]
[1768650357711,0.0104978,95258.0,95251.0,0.01045329]
[1768650357914,0.01049769,95259.0,95254.0,0.01049824]
[1768650358098,0.01049769,95259.0,95255.0,0.01049813]
[1768650358310,0.01049769,95259.0,95251.0,0.06294564]
[1768650358515,0.0104978,95258.0,95251.0,0.06294564]
[1768650359135,0.0104978,95258.0,95252.0,0.06299076]
[1768650359344,0.01049791,95257.0,95253.0,0.01049835]
[1768650359964,0.0104978,95258.0,95253.0,0.01049835]
[1768650360154,0.0104978,95258.0,95254.0,0.01049824]
[1768650360362,0.01049802,95256.0,95251.0,0.01045329]
[1768650360512,0.01049791,95257.0,95252.0,0.01049846]
[1768650360717,0.0104978,95258.0,95253.0,0.01049835]
[1768650360916,0.01049791,95257.0,95253.0,0.01049835]
[1768650361771,0.01049802,95256.0,95251.0,0.01049857]
[1768650361979,0.05655123,95256.0,95251.0,0.01049857]
[1768650362186,0.05655123,95256.0,95252.0,0.01049846]
[1768650362365,0.01049802,95256.0,95252.0,0.01049846]
[1768650363542,0.01049802,95256.0,95251.0,0.01049857]
[1768650364577,0.01049802,95256.0,95252.0,0.01049846]
[1768650364786,0.01049791,95257.0,95252.0,0.01049846]
[1768650365399,0.01049802,95256.0,95252.0,0.01049846]
[1768650365606,0.01049791,95257.0,95252.0,0.01049846]
[1768650366272,0.01049791,95257.0,95252.0,0.01045318]
[1768650366479,0.01049802,95256.0,95252.0,0.01045318]
[1768650366683,0.01049802,95256.0,95252.0,0.0104079]
[1768650367629,0.01049791,95257.0,95252.0,0.0104079]
[1768650368158,0.01049791,95257.0,95252.0,0.01036262]
[1768650368432,0.01049791,95257.0,95252.0,0.01031734]
[1768650368807,0.01049791,95257.0,95252.0,0.0102268]
[1768650369778,0.01049802,95256.0,95252.0,0.0102268]
[1768650370079,0.01049791,95257.0,95253.0,0.01049835]
[1768650371894,0.01049791,95257.0,95252.0,0.0102268]
[1768650372052,0.01049791,95257.0,95253.0,0.01049835]
[1768650372254,0.01049802,95256.0,95252.0,0.0102268]
[1768650373653,0.01049791,95257.0,95252.0,0.0102268]
[1768650374034,0.01049791,95257.0,95253.0,0.01049835]
[1768650374283,0.01049791,95257.0,95252.0,0.0102268]
[1768650375711,0.0104978,95258.0,95253.0,0.01049835]
[1768650375925,0.01049791,95257.0,95253.0,0.01049835]
[1768650377951,0.01049791,95257.0,95251.0,0.01049857]
[1768650378103,0.01049791,95257.0,95253.0,0.01049835]
[1768650378501,0.01049769,95259.0,95254.0,0.01049824]
[1768650378709,0.0104978,95258.0,95253.0,0.01049835]
[1768650379808,0.0104978,95258.0,95254.0,0.01049824]
[1768650380010,0.01049769,95259.0,95255.0,0.01049813]
[1768650382089,0.0104978,95258.0,95254.0,0.01049824]
[1768650382310,0.0104978,95258.0,95254.0,0.01045297]
[1768650384072,0.01049791,95257.0,95253.0,0.01049835]
[1768650384472,0.01049802,95256.0,95251.0,0.01049857]
[1768650384672,0.01049813,95255.0,95250.0,0.13769868]
[1768650385337,0.01049824,95254.0,95250.0,0.13769868]
[1768650385927,0.01049824,95254.0,95250.0,0.13765342]
[1768650386246,0.01049813,95255.0,95250.0,0.13765342]
[1768650386628,0.01049813,95255.0,95251.0,0.01049857]
[1768650387395,0.01049813,95255.0,95250.0,0.13765342]
[1768650387912,0.01049813,95255.0,95250.0,0.13745573]
[1768650388875,0.01049813,95255.0,95251.0,0.01049857]
[1768650389296,0.01049813,95255.0,95251.0,0.01045331]
[1768650392624,0.01049824,95254.0,95250.0,0.12695705]
[1768650393406,0.01049813,95255.0,95250.0,0.13745573]
[1768650393583,0.01049824,95254.0,95250.0,0.13745573]
[1768650393779,0.01049813,95255.0,95250.0,0.13745573]
[1768650394131,0.01049824,95254.0,95250.0,0.13745573]
[1768650394346,0.01049813,95255.0,95250.0,0.13745573]
[1768650394972,0.01049824,95254.0,95250.0,0.12695705]
[1768650395196,0.01049813,95255.0,95250.0,0.13745573]
[1768650396575,0.01049824,95254.0,95250.0,0.13745573]
[1768650397933,0.01049802,95256.0,95252.0,0.01049846]
[1768650398138,0.01049802,95256.0,95251.0,0.01049857]
[1768650398345,0.01049813,95255.0,95251.0,0.01049857]
[1768650398553,0.01049813,95255.0,95250.0,0.13745573]
[1768650399173,0.01049813,95255.0,95251.0,0.01049857]
[1768650400365,0.01049813,95255.0,95253.0,0.00034154]
[1768650400564,0.01049813,95255.0,95251.0,0.01049857]
[1768650400765,0.01049813,95255.0,95254.0,0.00033704]
[1768650408535,0.01049802,95256.0,95254.0,0.00033704]
[1768650408738,0.01049802,95256.0,95252.0,0.01049846]
[1768650409958,0.01049802,95256.0,95251.0,0.01049857]
[1768650412231,0.01049813,95255.0,95251.0,0.01049857]
[1768650414788,0.01049813,95255.0,95254.0,0.00033704]
[1768650424374,0.01049813,95255.0,95254.0,0.00029178]
[1768650424375,0.06298881,95255.0,95254.0,0.00029178]
[1768650424824,0.06298854,95257.0,95241.0,0.01050162]
[1768650424825,0.04900437,95245.0,95241.0,0.01050162]
[1768650425038,0.06299611,95244.0,95241.0,1.95e-06]
[1768650425275,0.01049934,95244.0,95241.0,1.95e-06]
[1768650425494,0.05249731,95243.0,95241.0,1.95e-06]
[1768650425705,0.01049934,95244.0,95241.0,1.95e-06]
[1768650427148,0.06299612,95244.0,95241.0,1.95e-06]
[1768650427485,0.01049934,95244.0,95241.0,1.95e-06]
[1768650428066,0.0629961,95244.0,95241.0,1.95e-06]
[1768650428269,0.01049934,95244.0,95241.0,1.95e-06]
[1768650429116,0.06299651,95244.0,95241.0,1.95e-06]
[1768650429318,0.05249736,95243.0,95241.0,1.95e-06]
[1768650429727,0.06299713,95244.0,95241.0,1.95e-06]
[1768650429939,0.05249782,95243.0,95241.0,1.95e-06]
[1768650430943,0.06299614,95244.0,95241.0,1.95e-06]
[1768650431317,0.06299614,95244.0,95240.0,1.95e-06]
[1768650431318,0.10150276,95241.0,95240.0,1.95e-06]
[1768650431661,0.10155,95241.0,95240.0,1.95e-06]
[1768650432494,0.04905161,95241.0,95240.0,1.95e-06]
[1768650432928,4.724e-05,95241.0,95240.0,1.95e-06]
[1768650443699,0.05817842,95247.0,95243.0,0.01049945]
[1768650443916,0.01049912,95246.0,95240.0,0.01050174]
[1768650444736,0.06299481,95246.0,95240.0,0.01050174]
[1768650445323,0.01049934,95244.0,95240.0,0.01050174]
[1768650445913,0.01049923,95245.0,95241.0,0.01049967]
[1768650446278,0.01049912,95246.0,95242.0,0.01049956]
[1768650446907,0.01050174,95246.0,95242.0,0.01049956]
[1768650447155,0.01050174,95246.0,95243.0,0.01049945]
[1768650448842,0.01041117,95246.0,95243.0,0.01049945]
[1768650449297,0.01049923,95245.0,95241.0,0.01049967]
[1768650449673,0.02091029,95246.0,95241.0,0.01049967]
[1768650451671,0.02091029,95246.0,95242.0,0.01049956]
[1768650453388,0.01041117,95246.0,95243.0,0.01049945]
[1768650456853,0.01041117,95246.0,95242.0,0.01049956]
[1768650457296,0.01041117,95246.0,95243.0,0.01049945]
[1768650458147,0.01041117,95246.0,95243.0,0.06299671]
[1768650458368,0.01036589,95246.0,95243.0,0.01049945]
[1768650459789,0.01036589,95246.0,95243.0,0.06299657]
[1768650460172,0.01036589,95246.0,95243.0,0.05249712]
[1768650460372,0.01036589,95246.0,95243.0,0.06299657]
[1768650460573,0.01036589,95246.0,95243.0,0.01049945]
[1768650460775,0.01036589,95246.0,95242.0,0.01049956]
[1768650461320,0.01027532,95246.0,95242.0,0.01049956]
[1768650461946,0.01027532,95246.0,95243.0,0.01049945]
[1768650462686,0.01027532,95246.0,95240.0,1.95e-06]
[1768650463211,0.01049923,95245.0,95241.0,0.01049967]
[1768650463409,0.01049923,95245.0,95240.0,0.01050174]
[1768650464397,0.02077444,95246.0,95241.0,0.01049967]
[1768650464572,0.01027532,95246.0,95242.0,0.01049956]
[1768650464781,0.01027532,95246.0,95243.0,0.01049945]
[1768650467850,0.01018475,95246.0,95243.0,0.01049945]
[1768650470244,0.01018475,95246.0,95243.0,0.06299666]
[1768650470423,0.01009417,95246.0,95243.0,0.01049945]
[1768650471575,0.02059329,95246.0,95241.0,0.01049967]
[1768650471959,0.01009417,95246.0,95241.0,0.01049967]
[1768650472124,0.02059329,95246.0,95242.0,0.01049956]
[1768650474491,0.02050272,95246.0,95242.0,0.01049956]
[1768650476607,0.01049923,95245.0,95241.0,0.01049967]
[1768650477672,0.01049923,95245.0,95241.0,0.00873762]
[1768650477873,0.01049923,95245.0,95241.0,0.00677763]
[1768650478291,0.01049923,95245.0,95240.0,0.01050174]
[1768650478922,0.01049923,95245.0,95241.0,0.01049967]
[1768650479364,0.01049901,95247.0,95242.0,0.01049956]
[1768650479532,0.01049923,95245.0,95241.0,0.01049967]
[1768650479716,0.01049923,95245.0,95240.0,0.01050174]
[1768650481055,0.01049934,95244.0,95240.0,0.01050174]
[1768650481944,0.01049923,95245.0,95240.0,0.01050174]
[1768650482326,0.01049934,95244.0,95240.0,1.95e-06]
[1768650482776,0.01049923,95245.0,95240.0,0.01050174]
[1768650483350,0.01049923,95245.0,95241.0,0.01049967]
[1768650483666,0.01049901,95247.0,95242.0,0.01049956]
[1768650484276,0.01049912,95246.0,95242.0,0.01049956]
[1768650485062,0.01049901,95247.0,95242.0,0.01049956]
[1768650485453,0.01049912,95246.0,95242.0,0.01049956]
[1768650486188,0.01049923,95245.0,95241.0,0.01049967]
[1768650486407,0.01049923,95245.0,95240.0,0.01050174]
[1768650486822,0.06299498,95246.0,95240.0,0.01050174]
[1768650486823,0.01049912,95246.0,95241.0,0.01049967]
[1768650487305,0.01049912,95246.0,95242.0,0.01049956]
[1768650487727,0.01049923,95245.0,95241.0,0.01049967]
[1768650487933,0.01049912,95246.0,95242.0,0.01049956]
[1768650488190,0.01049923,95245.0,95241.0,0.01049967]
[1768650489031,0.01049912,95246.0,95241.0,0.01049967]
[1768650489675,0.01049923,95245.0,95241.0,0.01049967]
[1768650490839,0.01049912,95246.0,95241.0,0.01049967]
[1768650491467,0.01049912,95246.0,95242.0,0.00466197]
[1768650492103,0.01049912,95246.0,95241.0,0.00854006]
[1768650492662,0.01049912,95246.0,95242.0,0.01049956]
[1768650492865,0.01049901,95247.0,95242.0,0.01049956]
[1768650493079,0.01049901,95247.0,95240.0,1.95e-06]
[1768650493080,0.01049923,95245.0,95240.0,1.95e-06]
[1768650493307,0.01049923,95245.0,95239.0,0.0104999]
[1768650493308,0.01049945,95243.0,95239.0,0.0104999]
[1768650494272,0.01049956,95242.0,95237.0,0.01050012]
[1768650494512,0.01049956,95242.0,95229.0,0.21001967]
[1768650494513,0.0461419,95239.0,95231.0,0.01050078]
[1768650494698,0.01049967,95241.0,95237.0,0.01050012]
[1768650494904,0.01049956,95242.0,95237.0,0.01050012]